bitfinex/quotes_SOLUSD_20250228
["timestamp","ask_amount","ask_price","bid_price","bid_amount"]
[1740779528726,87.58,147.81,147.72,20.0]
[1740779528931,6.7658,147.8,147.71,0.063]
[1740779529518,23.6805,147.8,147.71,0.063]
[1740779530932,80.7,147.79,147.71,0.063]
[1740779531132,80.7,147.78,147.71,0.063]
[1740779531642,23.6805,147.8,147.71,0.063]
[1740779531643,82.3093,147.82,147.71,219.063]
[1740779531926,6.7655,147.81,147.71,219.063]
[1740779532317,6.7655,147.81,147.72,6.3502]
[1740779532517,87.58,147.82,147.75,20.0]
[1740779532935,87.58,147.82,147.76,6.7677]
[1740779534012,94.345,147.82,147.75,26.768]
[1740779536030,80.7,147.82,147.76,1.6596]
[1740779536841,6.7646,147.83,147.76,1.6596]
[1740779537045,6.7646,147.83,147.77,6.7672]
[1740779537428,6.7646,147.83,147.76,1.6596]
[1740779537935,80.7,147.85,147.76,1.6596]
[1740779537936,87.4637,147.85,147.76,8.4272]
[1740779538236,127.6222,147.88,147.79,20.0]
[1740779538442,80.7,147.87,147.78,87.6001]
[1740779539027,6.7631,147.86,147.78,87.6001]
[1740779539232,0.03,147.84,147.76,1.6596]
[1740779540134,6.3272,147.83,147.75,0.063]
[1740779540332,87.6,147.82,147.75,0.063]
[1740779541237,6.7658,147.8,147.75,0.063]
[1740779541546,80.7,147.79,147.75,0.063]
[1740779542630,6.7668,147.78,147.75,0.063]
[1740779545729,87.4668,147.78,147.75,0.063]
[1740779547351,80.7,147.77,147.75,0.063]
[1740779547648,87.54,147.76,147.75,0.063]
[1740779548547,94.3077,147.76,147.75,0.063]
[1740779552334,87.54,147.76,147.75,0.063]
[1740779552535,94.3077,147.76,147.75,0.063]
[1740779553535,87.4677,147.76,147.75,0.063]
[1740779553734,80.7,147.79,147.75,0.063]
[1740779553942,87.4665,147.79,147.75,0.063]
[1740779554151,6.78,147.8,147.75,0.063]
[1740779554536,6.78,147.8,147.75,1.6535]
[1740779555738,194.74,147.81,147.76,6.7677]
[1740779556333,194.74,147.81,147.76,104.687]
[1740779556334,114.04,147.81,147.76,104.687]
[1740779556775,0.03,147.82,147.76,104.687]
[1740779557539,0.03,147.82,147.76,106.687]
[1740779558235,0.03,147.82,147.8,20.0]
[1740779558440,0.03,147.82,147.8,101.0]
[1740779559052,0.03,147.82,147.8,81.0]
[1740779559257,0.03,147.82,147.78,219.0]
[1740779559950,0.03,147.82,147.79,6.7663]
[1740779560141,0.03,147.82,147.78,87.7667]
[1740779560347,0.03,147.82,147.78,87.7666]
[1740779560645,0.03,147.82,147.78,81.0]
[1740779562249,0.03,147.82,147.78,87.7667]
[1740779562839,0.03,147.82,147.78,242.6837]
[1740779563042,0.03,147.82,147.78,244.6837]
[1740779565556,0.03,147.82,147.81,20.0]
[1740779565761,0.03,147.82,147.81,26.7654]
[1740779566149,0.03,147.82,147.81,20.0]
[1740779566355,0.03,147.82,147.78,81.0]
[1740779566958,0.03,147.82,147.78,87.7667]
[1740779567153,0.03,147.82,147.78,89.7667]
[1740779567361,0.03,147.82,147.78,106.6837]
[1740779569461,0.03,147.82,147.78,244.6837]
[1740779569662,0.03,147.82,147.81,20.0]
[1740779570648,0.03,147.82,147.81,26.7654]
[1740779571368,0.03,147.82,147.81,107.7654]
[1740779571669,0.03,147.82,147.81,109.7654]
[1740779572868,0.03,147.82,147.72,5.3366279]
[1740779572869,0.03,147.82,147.75,0.063]
[1740779573781,18.64964886,147.8,147.75,0.063]
[1740779573974,6.8,147.79,147.75,0.063]
[1740779574266,80.7,147.78,147.75,0.063]
[1740779575265,6.8,147.79,147.75,0.063]
[1740779575467,0.03,147.82,147.75,0.063]
[1740779575768,0.03,147.82,147.75,81.063]
[1740779576171,80.7,147.81,147.75,0.063]
[1740779576754,80.7,147.8,147.75,0.063]
[1740779576959,6.7663,147.79,147.75,0.063]
[1740779577167,87.4663,147.79,147.75,0.063]
[1740779578859,104.3821,147.79,147.75,0.063]
[1740779580560,18.64964886,147.78,147.75,0.063]
[1740779580874,87.5,147.77,147.75,0.063]
[1740779581265,99.34964886,147.76,147.71,0.063]
[1740779581655,80.7,147.75,147.71,0.063]
[1740779582765,6.7686,147.74,147.71,0.063]
[1740779583080,80.7,147.75,147.71,0.063]
[1740779586076,18.64964886,147.74,147.71,0.063]
[1740779586593,18.64964886,147.72,147.71,0.063]
[1740779586758,25.41914886,147.72,147.71,0.063]
[1740779588162,33.02824886,147.72,147.71,0.063]
[1740779589089,26.25874886,147.72,147.71,0.063]
[1740779589382,18.64964886,147.72,147.71,0.063]
[1740779589588,6.5593,147.75,147.71,0.063]
[1740779589782,13.3276,147.75,147.71,0.063]
[1740779589983,1.5417,147.76,147.71,0.063]
[1740779590573,20.19134886,147.76,147.71,0.063]
[1740779590774,25.42964886,147.76,147.71,0.063]
[1740779591574,6.78,147.76,147.71,0.063]
[1740779592092,18.64964886,147.75,147.71,0.063]
[1740779592393,6.78,147.76,147.71,0.063]
[1740779594488,80.7,147.77,147.71,20.063]
[1740779594689,114.02,147.78,147.75,20.0]
[1740779595091,114.02,147.78,147.75,26.7679]
[1740779595403,114.02,147.78,147.75,28.3328]
[1740779596286,114.02,147.78,147.75,20.0]
[1740779596484,114.02,147.78,147.73,6.7689]
[1740779596692,120.7868,147.78,147.72,12.859]
[1740779597292,80.7,147.77,147.71,8.3978]
[1740779597478,80.7,147.77,147.71,1.6279]
[1740779597894,80.7,147.76,147.71,1.6279]
[1740779598073,99.34964886,147.75,147.71,0.063]
[1740779598280,80.7,147.74,147.71,0.063]
[1740779599375,87.4688,147.74,147.71,0.063]
[1740779599875,80.7,147.74,147.71,0.063]
[1740779600089,114.05,147.78,147.71,20.063]
[1740779600090,80.7,147.77,147.71,20.063]
[1740779601382,127.5968,147.78,147.71,20.063]
[1740779601383,120.83,147.78,147.71,32.9446]
[1740779601590,0.03,147.78,147.72,1.6447]
[1740779603597,0.03,147.78,147.73,6.7691]
[1740779604505,0.03,147.78,147.72,1.6447]
[1740779605700,6.7968,147.78,147.71,6.1747]
[1740779605998,6.7968,147.78,147.71,12.9446]
[1740779607302,6.7968,147.78,147.71,6.1747]
[1740779607892,23.7138,147.78,147.71,6.1747]
[1740779608095,99.34964886,147.77,147.71,6.1747]
[1740779608401,80.7,147.76,147.71,0.063]
[1740779608603,18.64964886,147.75,147.71,0.063]
[1740779608784,18.64964886,147.73,147.71,0.063]
[1740779609105,25.38964886,147.72,147.71,0.063]
[1740779609496,13.5095,147.72,147.71,0.063]
[1740779611614,6.74,147.72,147.71,0.063]
[1740779614112,80.7,147.74,147.71,0.063]
[1740779615498,87.4686,147.74,147.71,0.063]
[1740779617791,18.64964886,147.73,147.71,0.063]
[1740779617999,6.7695,147.72,147.71,0.063]
[1740779618198,106.11914886,147.72,147.71,0.063]
[1740779621428,25.41914886,147.72,147.71,0.0001]
[1740779621605,27.41914886,147.72,147.71,0.0001]
[1740779621802,25.41914886,147.72,147.71,0.0001]
[1740779624220,139.51914886,147.72,147.71,0.0001]
[1740779625835,120.8695,147.72,147.71,0.0001]
[1740779628631,114.1,147.72,147.71,0.0001]
[1740779629010,120.8695,147.72,147.71,0.0001]
[1740779629406,139.51914886,147.72,147.71,0.0001]
[1740779630128,120.8695,147.72,147.71,0.0001]
[1740779631136,139.51914886,147.72,147.71,0.0001]
[1740779633525,120.8695,147.72,147.71,0.0001]
[1740779633840,139.51914886,147.72,147.71,0.0001]
[1740779634916,139.54914886,147.72,147.71,0.0001]
[1740779636814,120.8995,147.72,147.71,0.0001]
[1740779637806,139.54914886,147.72,147.71,0.0001]
[1740779638723,20.0,147.69,147.68,0.063]
[1740779638912,26.66,147.69,147.68,0.063]
[1740779639909,33.4309,147.69,147.68,0.063]
[1740779640830,52.08054886,147.69,147.68,0.063]
[1740779643830,52.04054886,147.69,147.68,0.063]
[1740779644523,6.62,147.69,147.68,0.063]
[1740779644731,13.3909,147.69,147.68,0.063]
[1740779646933,6.62,147.69,147.68,0.063]
[1740779647548,6.7706,147.7,147.68,0.063]
[1740779647728,13.3905,147.7,147.68,0.063]
[1740779649036,18.64964886,147.69,147.68,0.063]
[1740779650629,18.64964886,147.69,147.68,0.0001]
[1740779651336,25.42054886,147.69,147.68,0.0001]
[1740779651745,30.94754623,147.69,147.68,0.0001]
[1740779652624,25.42054886,147.69,147.68,0.0001]
[1740779660535,6.59,147.71,147.68,0.0001]
[1740779660729,13.3601,147.71,147.68,0.0001]
[1740779662345,6.8001,147.71,147.68,0.0001]
[1740779662549,13.3601,147.71,147.68,1.6302]
[1740779662750,80.7,147.7,147.68,1.6302]
[1740779663249,0.03,147.71,147.68,1.6302]
[1740779672651,18.67964886,147.71,147.68,0.0001]
[1740779672855,6.7704,147.7,147.68,0.0001]
[1740779676965,80.73,147.71,147.68,0.0001]
[1740779677858,0.03,147.71,147.68,0.0001]
[1740779678051,0.03,147.71,147.69,1.6025]
[1740779678559,0.03,147.71,147.7,20.0]
[1740779679352,0.03,147.71,147.7,26.7704]
[1740779679754,0.03,147.75,147.71,6.3647]
[1740779679953,0.03,147.75,147.74,21.5788]
[1740779680939,10.7035759,147.78,147.77,20.0]
[1740779681144,10.7035759,147.78,147.77,101.0]
[1740779681644,0.03,147.78,147.77,101.0]
[1740779682048,0.03,147.78,147.77,81.0]
[1740779682245,0.03,147.78,147.75,6.2531]
[1740779683552,0.03,147.78,147.77,20.0]
[1740779684759,0.03,147.78,147.75,6.2531]
[1740779685164,0.03,147.78,147.74,1.5788]
[1740779685367,0.03,147.78,147.74,21.5788]
[1740779685567,0.03,147.78,147.74,1.5788]
[1740779686049,0.03,147.78,147.74,21.5788]
[1740779686240,0.03,147.78,147.74,28.3474]
[1740779686763,0.03,147.78,147.74,30.3474]
[1740779687566,0.03,147.78,147.74,249.3474]
[1740779689869,0.03,147.78,147.75,6.2246]
[1740779690066,0.03,147.78,147.77,20.0]
[1740779690462,0.03,147.78,147.75,87.2246]
[1740779690970,0.03,147.78,147.74,1.5788]
[1740779691364,0.03,147.78,147.74,8.3471]
[1740779691749,0.03,147.78,147.74,89.3471]
[1740779691946,0.03,147.78,147.77,20.0]
[1740779692359,0.03,147.78,147.77,101.0]
[1740779693045,0.0001,147.78,147.77,265.92924886]
[1740779693251,0.03,147.84,147.83,20.0]
[1740779693467,0.03,147.84,147.83,267.53104886]
[1740779693965,0.03,147.85,147.84,20.64964886]
[1740779694167,0.03,147.85,147.84,22.06938651]
[1740779694375,0.03,147.86,147.84,22.06938651]
[1740779695572,0.03,147.92,147.88,20.0]
[1740779695952,0.03,147.92,147.88,101.0]
[1740779696145,0.03,147.92,147.89,6.7617]
[1740779696547,0.03,147.92,147.9,8.0391]
[1740779696846,0.03,147.93,147.92,2.0]
[1740779697062,0.03,147.96,147.95,40.64964886]
[1740779697253,0.03,147.96,147.95,240.5329]
[1740779697660,0.03,147.96,147.95,102.5329]
[1740779698061,0.03,147.96,147.95,109.2919]
[1740779698864,0.03,147.96,147.95,82.5329]
[1740779700688,0.03,147.96,147.95,247.94154886]
[1740779701177,120.54,148.05,147.99,20.0]
[1740779701178,114.0,148.05,147.99,20.0]
[1740779701375,114.0,148.05,147.99,101.0]
[1740779701753,114.0,148.05,147.99,81.0]
[1740779701953,120.7544,148.05,147.99,81.0]
[1740779702293,80.7,148.09,147.99,81.0]
[1740779702466,80.7,148.08,147.99,81.0]
[1740779702977,87.34,148.08,147.99,81.0]
[1740779703273,87.34,148.08,147.99,89.6639]
[1740779703674,113.95,148.11,148.03,20.0]
[1740779703884,0.03,148.11,148.07,22.0]
[1740779704057,0.03,148.11,148.1,20.0]
[1740779704265,0.03,148.11,148.1,101.0]
[1740779704874,0.03,148.11,148.1,81.0]
[1740779705373,0.03,148.11,148.08,81.0]
[1740779706073,0.03,148.11,148.04,89.2085]
[1740779706683,6.71,148.11,148.02,219.0]
[1740779707191,99.34964886,148.1,148.0,225.0654]
[1740779707396,99.34964886,148.1,148.0,87.0654]
[1740779707691,80.7,148.1,148.0,87.0654]
[1740779707869,6.71,148.11,148.04,20.0]
[1740779708064,0.03,148.11,148.06,6.754]
[1740779708489,0.03,148.11,148.06,225.754]
[1740779708665,0.03,148.11,148.09,20.0]
[1740779709068,0.03,148.11,148.09,81.0]
[1740779710088,0.03,148.11,148.09,219.0]
[1740779710299,0.03,148.11,148.09,224.4017]
[1740779710663,119.2785,148.19,148.09,224.4017]
[1740779710863,2.9287099,148.21,148.1,41.04964886]
[1740779711078,2.9287099,148.21,148.14,20.4]
[1740779711282,2.9287099,148.21,148.14,241.0]
[1740779711485,2.9287099,148.21,148.14,239.0]
[1740779711861,8.3267099,148.21,148.11,81.0]
[1740779712276,8.3267099,148.21,148.11,88.4013]
[1740779712473,8.3267099,148.21,148.14,20.0]
[1740779712797,2.9287099,148.21,148.18,20.0]
[1740779712969,2.9287099,148.21,148.18,101.0]
[1740779714290,2.9287099,148.21,148.18,81.0]
[1740779714905,8.3264099,148.21,148.15,81.0]
[1740779715097,2.9287099,148.21,148.15,86.3998]
[1740779715489,2.9587099,148.21,148.15,86.3998]
[1740779715988,0.03,148.36,148.27,2.0]
[1740779716191,0.03,148.36,148.27,6.88]
[1740779716373,0.03,148.36,148.28,7.3951]
[1740779716574,0.03,148.36,148.28,5.3951]
[1740779716776,6.94,148.4,148.28,5.3951]
[1740779717189,69.0667,148.46,148.32,1.5144]
[1740779717390,69.0667,148.55,148.38,4.0]
[1740779717593,1.2369932,148.52,148.44,2.0]
[1740779717792,7.33125812,148.65,148.54,2.0]
[1740779717793,6.3169932,148.65,148.54,2.0]
[1740779718094,2.0,148.63,148.55,2.0]
[1740779718314,2.0,148.63,148.49,20.0]
[1740779718315,69.0667,148.68,148.57,2.0]
[1740779718603,71.0667,148.67,148.58,2.0]
[1740779718804,167.7867,148.67,148.6,2.0]
[1740779718974,113.72,148.67,148.61,2.0]
[1740779719173,210.26270225,148.69,148.49,1.41292879]
[1740779719409,204.88240225,148.69,148.58,2.0]
[1740779719593,205.12496455,148.69,148.68,2.0]
[1740779719780,0.2425623,148.69,148.68,11.66]
[1740779720112,3.4591622,148.8,148.68,7.66]
[1740779720406,85.24650822,148.8,148.72,20.0]
[1740779720608,7.72,148.87,148.79,21.22203881]
[1740779720894,2.0,148.85,148.79,21.22203881]
[1740779721077,54.0667,148.84,148.73,33.11121149]
[1740779721397,34.60286518,148.8,148.72,63.66611644]
[1740779721573,9.10126628,148.79,148.72,29.97241644]
[1740779721776,9.10126628,148.79,148.63,2.0]
[1740779721777,9.10126628,148.79,148.68,2.0]
[1740779721995,7.86,148.79,148.69,0.14574554]
[1740779722381,20.0,148.75,148.69,0.14574554]
[1740779722714,20.0,148.71,148.61,33.45977253]
[1740779722879,20.0,148.67,148.58,8.66904329]
[1740779723085,20.0,148.67,148.58,10.66904329]
[1740779723379,20.0,148.67,148.58,2.0]
[1740779723591,20.0,148.67,148.56,2.0]
[1740779723785,20.0,148.67,148.61,2.0]
[1740779724194,5.3814,148.66,148.62,2.0]
[1740779724494,13.4491,148.71,148.62,2.0]
[1740779724495,5.3792,148.72,148.66,2.0]
[1740779724795,51.65451309,148.8,148.71,2.0]
[1740779724997,8.14,148.82,148.71,2.0]
[1740779724998,57.03121309,148.79,148.71,2.0]
[1740779725193,51.65451309,148.78,148.66,2.0]
[1740779725388,51.65451309,148.77,148.65,2.0]
[1740779725588,20.0,148.74,148.64,35.50384814]
[1740779725789,20.0,148.7,148.62,2.0]
[1740779725974,28.18,148.69,148.6,2.0]
[1740779726173,28.18,148.69,148.52,33.59115524]
[1740779726174,20.0,148.65,148.52,33.59115524]
[1740779726396,20.0,148.61,148.5,2.0]
[1740779726575,20.0,148.57,148.5,2.0]
[1740779726775,20.0,148.53,148.48,44.44407762]
[1740779726982,20.0,148.49,148.48,42.44407762]
[1740779727395,20.0,148.49,148.48,14.30217762]
[1740779727574,20.0,148.49,148.48,7.762e-05]
[1740779727778,20.0,148.48,148.39,10.66904329]
[1740779727977,28.28,148.47,148.4,2.0]
[1740779728285,5.3875,148.49,148.42,2.0]
[1740779728589,5.3875,148.49,148.43,2.0]
[1740779728794,18.8564,148.49,148.41,2.0]
[1740779728980,16.06920513,148.48,148.36,2.0]
[1740779729181,18.64964886,148.46,148.34,2.0]
[1740779729400,18.64964886,148.44,148.35,2.0]
[1740779729595,18.64964886,148.42,148.34,2.0]
[1740779729801,100.21699488,148.45,148.38,2.0]
[1740779730298,100.21699488,148.45,148.4,4.0]
[1740779730488,5.3893,148.44,148.4,4.0]
[1740779731588,5.3893,148.44,148.4,2.0]
[1740779731992,20.0,148.48,148.39,4.0]
[1740779732282,20.0,148.48,148.38,35.57714261]
[1740779732595,8.26,148.49,148.38,35.57714261]
[1740779732794,8.26,148.49,148.38,33.57714261]
[1740779733097,13.4707,148.47,148.37,35.64800155]
[1740779733297,13.4707,148.47,148.37,2.0]
[1740779733500,40.5853,148.49,148.35,33.83550518]
[1740779733722,80.7,148.46,148.33,33.07762087]
[1740779734001,80.7,148.45,148.35,2.0]
[1740779734185,80.7,148.44,148.4,2.0]
[1740779734497,5.3897,148.43,148.4,2.0]
[1740779734902,20.0,148.39,148.34,2.0]
[1740779735082,80.7,148.42,148.35,2.0]
[1740779736381,20.0,148.39,148.32,2.0]
[1740779736588,99.5704,148.38,148.29,2.0]
[1740779736786,20.0,148.34,148.27,2.0]
[1740779736982,80.7,148.36,148.27,2.0]
[1740779737188,20.0,148.32,148.26,2.0]
[1740779737401,20.0,148.31,148.26,2.0]
[1740779737704,20.0,148.31,148.25,25.0]
[1740779737900,80.7,148.3,148.25,25.0]
[1740779738490,18.8818,148.29,148.25,25.0]
[1740779739088,5.3948,148.29,148.28,2.0]
[1740779740101,5.3948,148.29,148.25,37.383]
[1740779740300,18.8818,148.29,148.25,35.383]
[1740779740606,13.487,148.29,148.25,33.383]
[1740779740801,20.0,148.29,148.25,35.383]
[1740779741101,76.07235362,148.32,148.28,2.0]
[1740779741305,26.9578,148.38,148.25,35.383]
[1740779741306,76.07235362,148.37,148.32,2.0]
[1740779741503,76.07235362,148.36,148.3,2.0]
[1740779741683,76.07235362,148.36,148.3,4.0]
[1740779742093,89.55425362,148.35,148.28,2.0]
[1740779742287,76.07235362,148.34,148.29,2.0]
[1740779742486,76.07235362,148.34,148.28,2.0]
[1740779742700,94.94905362,148.33,148.28,4.0]
[1740779743505,94.94905362,148.33,148.28,2.0]
[1740779743999,20.0,148.3,148.25,33.383]
[1740779744189,76.07235362,148.29,148.26,2.0]
[1740779744787,76.07235362,148.29,148.25,25.063]
[1740779745583,76.07235362,148.28,148.25,25.063]
[1740779745984,20.0,148.26,148.25,25.063]
[1740779746197,25.3959,148.26,148.25,25.063]
[1740779746593,80.7,148.25,148.18,2.0]
[1740779746804,20.0,148.22,148.18,2.0]
[1740779747505,20.0,148.22,148.16,10.26]
[1740779747696,20.0,148.22,148.17,2.0]
[1740779747893,100.7,148.21,148.15,2.063]
[1740779748108,100.7,148.21,148.17,2.0]
[1740779748307,100.7,148.21,148.16,2.0]
[1740779748612,80.7,148.2,148.16,2.0]
[1740779749510,80.7,148.2,148.15,0.063]
[1740779749718,80.7,148.2,148.16,2.0]
[1740779750322,80.7,148.2,148.18,4.0]
[1740779750610,80.7,148.24,148.11,28.84964886]
[1740779750814,80.7,148.23,148.16,0.063]
[1740779751026,80.7,148.22,148.16,0.063]
[1740779751703,80.7,148.21,148.16,0.063]
[1740779752209,80.7,148.2,148.16,0.063]
[1740779754311,80.7,148.19,148.16,0.063]
[1740779754490,80.7,148.18,148.16,0.063]
[1740779754696,80.7,148.17,148.16,0.063]
[1740779755514,23.7311,148.25,148.16,0.063]
[1740779755515,80.7,148.22,148.16,0.063]
[1740779758321,80.7,148.24,148.16,0.063]
[1740779759222,80.7,148.23,148.16,0.063]
[1740779760498,80.7,148.22,148.16,0.063]
[1740779760700,80.7,148.21,148.16,0.063]
[1740779760907,20.0,148.19,148.16,0.063]
[1740779761105,8.04,148.22,148.16,0.063]
[1740779761106,80.7,148.18,148.16,0.063]
[1740779761325,8.04,148.22,148.12,5.4009]
[1740779761326,80.7,148.17,148.12,5.4009]
[1740779761712,80.7,148.21,148.12,5.4009]
[1740779761907,80.7,148.26,148.14,18.64964886]
[1740779762106,80.7,148.25,148.14,18.64964886]
[1740779762517,80.7,148.25,148.16,18.71264886]
[1740779762720,80.7,148.24,148.16,18.71264886]
[1740779763714,80.7,148.24,148.16,0.063]
[1740779763911,80.7,148.23,148.16,0.063]
[1740779764303,20.0,148.19,148.16,0.063]
[1740779764507,86.099,148.18,148.16,0.063]
[1740779764723,80.7,148.17,148.16,0.063]
[1740779765023,2.0,148.23,148.16,0.063]
[1740779765024,10.02,148.24,148.16,0.063]
[1740779765325,5.397,148.23,148.16,0.063]
[1740779765913,8.02,148.24,148.16,0.063]
[1740779766109,0.02350001,148.23,148.16,0.063]
[1740779766931,0.02350001,148.23,148.14,5.4002]
[1740779767126,0.02350001,148.23,148.15,18.64964886]
[1740779767520,0.02350001,148.23,148.15,71.72882376]
[1740779767727,0.02350001,148.23,148.15,72.31191833]
[1740779767929,0.02350001,148.23,148.15,70.31191833]
[1740779768430,0.02350001,148.23,148.15,18.64964886]
[1740779769032,0.02350001,148.23,148.17,18.64964886]
[1740779769217,0.02350001,148.23,148.19,18.64964886]
[1740779771236,0.02350001,148.23,148.21,18.64964886]
[1740779773123,0.02350001,148.23,148.19,37.54414886]
[1740779773325,0.02350001,148.23,148.2,18.64964886]
[1740779773638,0.02350001,148.23,148.21,6.174]
[1740779774140,0.03,148.28,148.23,18.64964886]
[1740779774325,0.03,148.28,148.24,8.0]
[1740779774725,0.03,148.28,148.25,18.64964886]
[1740779775319,0.03,148.28,148.27,18.64964886]
[1740779775837,0.03,148.28,148.24,8.0]
[1740779776637,0.03,148.28,148.24,13.3965]
[1740779777026,0.03,148.28,148.25,18.64964886]
[1740779777346,86.0924,148.36,148.27,18.64964886]
[1740779778238,80.7,148.36,148.27,18.64964886]
[1740779778418,86.0924,148.36,148.27,18.64964886]
[1740779779321,80.7,148.35,148.25,1.5797]
[1740779779642,57.19999971,148.35,148.28,9.0871704]
[1740779780138,5.3924,148.36,148.28,9.0871704]
[1740779780346,5.3924,148.36,148.27,18.64964886]
[1740779780531,5.3924,148.36,148.25,6.9758]
[1740779780733,5.3924,148.36,148.26,18.64964886]
[1740779780933,18.8731,148.36,148.26,18.64964886]
[1740779781528,57.19999971,148.35,148.26,18.64964886]
[1740779781748,57.19999971,148.34,148.25,1.5797]
[1740779782049,57.19999971,148.33,148.22,13.3573]
[1740779782235,57.19999971,148.32,148.23,18.64964886]
[1740779782434,57.19999971,148.35,148.23,18.64964886]
[1740779782743,57.19999971,148.34,148.23,208.31191833]
[1740779782926,57.19999971,148.34,148.23,189.66226947]
[1740779783246,57.19999971,148.34,148.24,37.53784886]
[1740779783449,62.59299971,148.34,148.24,37.53784886]
[1740779783947,62.59299971,148.34,148.24,39.53784886]
[1740779784145,62.59299971,148.34,148.24,37.53784886]
[1740779786233,62.59299971,148.34,148.24,227.20011833]
[1740779786965,62.59299971,148.34,148.24,227.26311833]
[1740779787148,0.03,148.38,148.3,20.0]
[1740779787372,0.03,148.34,148.31,13.8812]
[1740779788436,0.03,148.34,148.32,18.64964886]
[1740779790241,0.03,148.34,148.33,5.3933]
[1740779790953,0.03,148.34,148.33,24.04294886]
[1740779791347,0.03,148.34,148.33,26.04294886]
[1740779791743,0.03,148.38,148.36,20.0]
[1740779792352,0.03,148.38,148.37,24.04154886]
[1740779793052,0.03,148.38,148.37,31.82154886]
[1740779794341,0.03,148.38,148.37,26.42964886]
[1740779794737,0.03,148.38,148.37,7.78]
[1740779795459,0.03,148.38,148.33,7.76]
[1740779796035,0.03,148.38,148.32,18.64964886]
[1740779796464,0.03,148.38,148.32,24.04324886]
[1740779796661,57.22999971,148.38,148.31,13.7612]
[1740779797039,57.22999971,148.38,148.32,18.64964886]
[1740779797459,0.03,148.38,148.32,18.64964886]
[1740779799641,0.03,148.38,148.32,24.04324886]
[1740779801066,0.03,148.38,148.32,5.3936]
[1740779802451,0.03,148.38,148.31,13.8242]
[1740779802452,57.22999971,148.38,148.31,0.063]
[1740779803953,0.03,148.38,148.31,5.457]
[1740779804162,0.03,148.38,148.31,0.063]
[1740779804674,57.19999971,148.37,148.31,0.063]
[1740779804959,57.19999971,148.36,148.31,0.063]
[1740779805154,57.19999971,148.35,148.31,0.063]
[1740779805351,57.19999971,148.34,148.31,0.063]
[1740779805651,0.03,148.38,148.31,0.063]
[1740779805652,57.19999971,148.33,148.31,0.063]
[1740779806073,57.19999971,148.32,148.31,0.063]
[1740779806362,62.59369971,148.32,148.31,0.063]
[1740779806539,5.3937,148.32,148.31,0.063]
[1740779807158,13.4826,148.34,148.31,0.063]
[1740779807358,20.0,148.32,148.31,0.063]
[1740779807663,18.8729,148.36,148.31,0.063]
[1740779808159,0.03,148.38,148.31,0.063]
[1740779808160,5.4216,148.38,148.31,0.063]
[1740779809962,0.03,148.38,148.31,0.063]
[1740779812177,0.03,148.38,148.31,25.04224886]
[1740779812868,0.03,148.38,148.31,6.3926]